Workbook

Sheet Overview
B2: Welcome to EPA's Asset Management and Debt Capacity Tool, developed with the assistance of The Cadmus Group, Inc.
B4: What will I find in this tool? | F4: This tool has two sections: (1) an asset management section and (2) a debt capacity section.
B7: How can I use this tool? | F7: The asset management section includes an inventory where you may list all of the assets owned or operated by your utility and flexible, easy-to-use features to help you prioritize repairs or replacements of the assets. The debt capacity section includes a simple budget table to calculate your utility's costs and revenues. It also provides a debt service table, which, for simplicity, is based on loan amortization schedules. This section helps you consider the potential financial impacts of borrowing money and/or increasing customer rates.
B15: How do I get started? | F15: We highly recommend reading the Getting Started document before using this tool for the first time. Getting Started walks you through each of the tool's features, explaining why it is included and how to use it. The document also includes screenshots, troubleshooting help, and important notes to save time and avoid errors. Some brief help and instructions are also provided within the two sections of the tool itself, but we recommend using this information as a reminder after having first read through the Getting Started document.
B23: How often should I update this tool? | F23: In order to accurately track each asset's condition, the inventory should be updated every time that an employee goes into the field and inspects a particular asset. We recommend setting aside a certain time each week to update information in the inventory. Additionally, the entire tool should be updated annually, particularly in preparation for developing an annual budget and list of scheduled capital improvements.
B30: Where can I find additional information on these topic? | F30: For information on asset management: http://water.epa.gov/infrastructure/sustain/asset_management.cfm For information on debt capacity: http://water.epa.gov/infrastructure/sustain/financing_priceofwater.cfm

Sheet Drop_Down_Options (hidden)
A1: Condition | B1: Criticality | C1: Service Start Date
A2: 5: Excellent | B2: 5: Insignificant | C2: =TODAY() -> 2014-02-18
A3: 4.5 | B3: 4.5
A4: 4: Good | B4: 4: Minor
A5: 3.5 | B5: 3.5
A6: 3: Fair | B6: 3: Moderate
A7: 2.5 | B7: 2.5
A8: 2: Poor | B8: 2: Major
A9: 1.5 | B9: 1.5
A10: 1: Very Poor | B10: 1: Catastrophic

Sheet Calculations (hidden)
A1: Service Start Date | B1: Estimated Useful Life (yrs.) | C1: Condition Score | D1: Criticality Score | E1: Remaining Useful Life | F1: Years in Service | G1: Condition # | H1: Criticality # | I1: Priority Score
A2: 1965-06-30 | B2: 75 | C2: 2: Poor | D2: 3: Moderate | E2: =B2-F2 -> 26.32876712 | F2: =(TODAY()-A2)/365 -> 48.67123288 | G2: =IF(LEN(C2)>3,LEFT(C2,1),C2) -> 2 | H2: =IF(LEN(D2)>3,LEFT(D2,1),D2) -> 3 | I2: =IF(B2="","",IF(C2="","",IF(D2="","",10*((Asset_Management!$H$14*EXP(1-(IF((E2/B2)<0,0,(E2/B2)))))+(Asset_Management!$H$15*EXP(1-(G2/5)))+(Asset_Management!$H$16*EXP(1-(H2/5))))))) -> 17.08283425
A3: 1965-06-30 | B3: 75 | C3: 2: Poor | D3: 3: Moderate | E3: =B3-F3 -> 26.32876712 | F3: =(TODAY()-A3)/365 -> 48.67123288 | G3: =IF(LEN(C3)>3,LEFT(C3,1),C3) -> 2 | H3: =IF(LEN(D3)>3,LEFT(D3,1),D3) -> 3 | I3: =IF(B3="","",IF(C3="","",IF(D3="","",10*((Asset_Management!$H$14*EXP(1-(IF((E3/B3)<0,0,(E3/B3)))))+(Asset_Management!$H$15*EXP(1-(G3/5)))+(Asset_Management!$H$16*EXP(1-(H3/5))))))) -> 17.08283425
A4: 1965-06-30 | B4: 75 | C4: 3: Fair | D4: 4: Minor | E4: 26.32876712 | F4: 48.67123288 | G4: 3 | H4: 4 | I4: =IF(B4="","",IF(C4="","",IF(D4="","",10*((Asset_Management!$H$14*EXP(1-(IF((E4/B4)<0,0,(E4/B4)))))+(Asset_Management!$H$15*EXP(1-(G4/5)))+(Asset_Management!$H$16*EXP(1-(H4/5))))))) -> 14.67997008
A5: 1965-06-30 | B5: 75 | C5: 2: Poor | D5: 3: Moderate | E5: 26.32876712 | F5: 48.67123288 | G5: 2 | H5: 3 | I5: =IF(B5="","",IF(C5="","",IF(D5="","",10*((Asset_Management!$H$14*EXP(1-(IF((E5/B5)<0,0,(E5/B5)))))+(Asset_Management!$H$15*EXP(1-(G5/5)))+(Asset_Management!$H$16*EXP(1-(H5/5))))))) -> 17.08283425
A6: 1965-06-30 | B6: 75 | C6: 1: Very Poor | D6: 3: Moderate | E6: 26.32876712 | F6: 48.67123288 | G6: 1 | H6: 3 | I6: =IF(B6="","",IF(C6="","",IF(D6="","",10*((Asset_Management!$H$14*EXP(1-(IF((E6/B6)<0,0,(E6/B6)))))+(Asset_Management!$H$15*EXP(1-(G6/5)))+(Asset_Management!$H$16*EXP(1-(H6/5))))))) -> 18.69652276
A7: 1965-06-30 | B7: 75 | C7: 2: Poor | D7: 3: Moderate | E7: 26.32876712 | F7: 48.67123288 | G7: 2 | H7: 3 | I7: =IF(B7="","",IF(C7="","",IF(D7="","",10*((Asset_Management!$H$14*EXP(1-(IF((E7/B7)<0,0,(E7/B7)))))+(Asset_Management!$H$15*EXP(1-(G7/5)))+(Asset_Management!$H$16*EXP(1-(H7/5))))))) -> 17.08283425
A8: 1965-06-30 | B8: 75 | C8: 2: Poor | D8: 2: Major | E8: 26.32876712 | F8: 48.67123288 | G8: 2 | H8: 2 | I8: =IF(B8="","",IF(C8="","",IF(D8="","",10*((Asset_Management!$H$14*EXP(1-(IF((E8/B8)<0,0,(E8/B8)))))+(Asset_Management!$H$15*EXP(1-(G8/5)))+(Asset_Management!$H$16*EXP(1-(H8/5))))))) -> 18.40401066
A9: 1981-06-01 | B9: 75 | C9: 2: Poor | D9: 2: Major | E9: 42.26027397 | F9: 32.73972603 | G9: 2 | H9: 2 | I9: =IF(B9="","",IF(C9="","",IF(D9="","",10*((Asset_Management!$H$14*EXP(1-(IF((E9/B9)<0,0,(E9/B9)))))+(Asset_Management!$H$15*EXP(1-(G9/5)))+(Asset_Management!$H$16*EXP(1-(H9/5))))))) -> 17.67160674
A10: 1981-06-01 | B10: 75 | C10: 3: Fair | D10: 4: Minor | E10: 42.26027397 | F10: 32.73972603 | G10: 3 | H10: 4 | I10: =IF(B10="","",IF(C10="","",IF(D10="","",10*((Asset_Management!$H$14*EXP(1-(IF((E10/B10)<0,0,(E10/B10)))))+(Asset_Management!$H$15*EXP(1-(G10/5)))+(Asset_Management!$H$16*EXP(1-(H10/5))))))) -> 13.94756616
A11: 1981-06-01 | B11: 75 | C11: 3: Fair | D11: 4: Minor | E11: 42.26027397 | F11: 32.73972603 | G11: 3 | H11: 4 | I11: =IF(B11="","",IF(C11="","",IF(D11="","",10*((Asset_Management!$H$14*EXP(1-(IF((E11/B11)<0,0,(E11/B11)))))+(Asset_Management!$H$15*EXP(1-(G11/5)))+(Asset_Management!$H$16*EXP(1-(H11/5))))))) -> 13.94756616
A12: 1997-08-10 | B12: 75 | C12: 3: Fair | D12: 1: Catastrophic | E12: 58.4630137 | F12: 16.5369863 | G12: 3 | H12: 1 | I12: =IF(B12="","",IF(C12="","",IF(D12="","",10*((Asset_Management!$H$14*EXP(1-(IF((E12/B12)<0,0,(E12/B12)))))+(Asset_Management!$H$15*EXP(1-(G12/5)))+(Asset_Management!$H$16*EXP(1-(H12/5))))))) -> 17.36284528
A13: 1997-08-10 | B13: 75 | C13: 3: Fair | D13: 1: Catastrophic | E13: 58.4630137 | F13: 16.5369863 | G13: 3 | H13: 1 | I13: =IF(B13="","",IF(C13="","",IF(D13="","",10*((Asset_Management!$H$14*EXP(1-(IF((E13/B13)<0,0,(E13/B13)))))+(Asset_Management!$H$15*EXP(1-(G13/5)))+(Asset_Management!$H$16*EXP(1-(H13/5))))))) -> 17.36284528
A14: 1997-08-10 | B14: 75 | C14: 2: Poor | D14: 1: Catastrophic | E14: 58.4630137 | F14: 16.5369863 | G14: 2 | H14: 1 | I14: =IF(B14="","",IF(C14="","",IF(D14="","",10*((Asset_Management!$H$14*EXP(1-(IF((E14/B14)<0,0,(E14/B14)))))+(Asset_Management!$H$15*EXP(1-(G14/5)))+(Asset_Management!$H$16*EXP(1-(H14/5))))))) -> 18.68402169
A15: 1997-08-10 | B15: 75 | C15: 2: Poor | D15: 1: Catastrophic | E15: 58.4630137 | F15: 16.5369863 | G15: 2 | H15: 1 | I15: =IF(B15="","",IF(C15="","",IF(D15="","",10*((Asset_Management!$H$14*EXP(1-(IF((E15/B15)<0,0,(E15/B15)))))+(Asset_Management!$H$15*EXP(1-(G15/5)))+(Asset_Management!$H$16*EXP(1-(H15/5))))))) -> 18.68402169
A16: 1997-08-10 | B16: 75 | C16: 3: Fair | D16: 4: Minor | E16: 58.4630137 | F16: 16.5369863 | G16: 3 | H16: 4 | I16: =IF(B16="","",IF(C16="","",IF(D16="","",10*((Asset_Management!$H$14*EXP(1-(IF((E16/B16)<0,0,(E16/B16)))))+(Asset_Management!$H$15*EXP(1-(G16/5)))+(Asset_Management!$H$16*EXP(1-(H16/5))))))) -> 13.34629259
A17: 1981-06-01 | B17: 60 | C17: 3: Fair | D17: 4: Minor | E17: 27.26027397 | F17: 32.73972603 | G17: 3 | H17: 4 | I17: =IF(B17="","",IF(C17="","",IF(D17="","",10*((Asset_Management!$H$14*EXP(1-(IF((E17/B17)<0,0,(E17/B17)))))+(Asset_Management!$H$15*EXP(1-(G17/5)))+(Asset_Management!$H$16*EXP(1-(H17/5))))))) -> 14.30441107
A18: 1981-06-01 | B18: 60 | C18: 1: Very Poor | D18: 4: Minor | E18: 27.26027397 | F18: 32.73972603 | G18: 1 | H18: 4 | I18: =IF(B18="","",IF(C18="","",IF(D18="","",10*((Asset_Management!$H$14*EXP(1-(IF((E18/B18)<0,0,(E18/B18)))))+(Asset_Management!$H$15*EXP(1-(G18/5)))+(Asset_Management!$H$16*EXP(1-(H18/5))))))) -> 17.239276
A19: 1981-06-01 | B19: 60 | C19: 3: Fair | D19: 4: Minor | E19: 27.26027397 | F19: 32.73972603 | G19: 3 | H19: 4 | I19: =IF(B19="","",IF(C19="","",IF(D19="","",10*((Asset_Management!$H$14*EXP(1-(IF((E19/B19)<0,0,(E19/B19)))))+(Asset_Management!$H$15*EXP(1-(G19/5)))+(Asset_Management!$H$16*EXP(1-(H19/5))))))) -> 14.30441107
A20: 1981-06-01 | B20: 60 | C20: 3: Fair | D20: 4: Minor | E20: 27.26027397 | F20: 32.73972603 | G20: 3 | H20: 4 | I20: =IF(B20="","",IF(C20="","",IF(D20="","",10*((Asset_Management!$H$14*EXP(1-(IF((E20/B20)<0,0,(E20/B20)))))+(Asset_Management!$H$15*EXP(1-(G20/5)))+(Asset_Management!$H$16*EXP(1-(H20/5))))))) -> 14.30441107
A21: 1981-06-01 | B21: 60 | C21: 3: Fair | D21: 4: Minor | E21: 27.26027397 | F21: 32.73972603 | G21: 3 | H21: 4 | I21: =IF(B21="","",IF(C21="","",IF(D21="","",10*((Asset_Management!$H$14*EXP(1-(IF((E21/B21)<0,0,(E21/B21)))))+(Asset_Management!$H$15*EXP(1-(G21/5)))+(Asset_Management!$H$16*EXP(1-(H21/5))))))) -> 14.30441107
A22: 1981-06-01 | B22: 60 | C22: 3: Fair | D22: 4: Minor | E22: 27.26027397 | F22: 32.73972603 | G22: 3 | H22: 4 | I22: =IF(B22="","",IF(C22="","",IF(D22="","",10*((Asset_Management!$H$14*EXP(1-(IF((E22/B22)<0,0,(E22/B22)))))+(Asset_Management!$H$15*EXP(1-(G22/5)))+(Asset_Management!$H$16*EXP(1-(H22/5))))))) -> 14.30441107
A23: 1981-06-01 | B23: 60 | C23: 3: Fair | D23: 4: Minor | E23: 27.26027397 | F23: 32.73972603 | G23: 3 | H23: 4 | I23: =IF(B23="","",IF(C23="","",IF(D23="","",10*((Asset_Management!$H$14*EXP(1-(IF((E23/B23)<0,0,(E23/B23)))))+(Asset_Management!$H$15*EXP(1-(G23/5)))+(Asset_Management!$H$16*EXP(1-(H23/5))))))) -> 14.30441107
A24: 1981-06-01 | B24: 60 | C24: 3: Fair | D24: 4: Minor | E24: 27.26027397 | F24: 32.73972603 | G24: 3 | H24: 4 | I24: =IF(B24="","",IF(C24="","",IF(D24="","",10*((Asset_Management!$H$14*EXP(1-(IF((E24/B24)<0,0,(E24/B24)))))+(Asset_Management!$H$15*EXP(1-(G24/5)))+(Asset_Management!$H$16*EXP(1-(H24/5))))))) -> 14.30441107
A25: 1981-06-01 | B25: 60 | C25: 3: Fair | D25: 4: Minor | E25: 27.26027397 | F25: 32.73972603 | G25: 3 | H25: 4 | I25: =IF(B25="","",IF(C25="","",IF(D25="","",10*((Asset_Management!$H$14*EXP(1-(IF((E25/B25)<0,0,(E25/B25)))))+(Asset_Management!$H$15*EXP(1-(G25/5)))+(Asset_Management!$H$16*EXP(1-(H25/5))))))) -> 14.30441107
A26: 1981-06-01 | B26: 60 | C26: 3: Fair | D26: 4: Minor | E26: 27.26027397 | F26: 32.73972603 | G26: 3 | H26: 4 | I26: =IF(B26="","",IF(C26="","",IF(D26="","",10*((Asset_Management!$H$14*EXP(1-(IF((E26/B26)<0,0,(E26/B26)))))+(Asset_Management!$H$15*EXP(1-(G26/5)))+(Asset_Management!$H$16*EXP(1-(H26/5))))))) -> 14.30441107
A27: 1983-06-01 | B27: 60 | C27: 3: Fair | D27: 3: Moderate | E27: 29.26027397 | F27: 30.73972603 | G27: 3 | H27: 3 | I27: =IF(B27="","",IF(C27="","",IF(D27="","",10*((Asset_Management!$H$14*EXP(1-(IF((E27/B27)<0,0,(E27/B27)))))+(Asset_Management!$H$15*EXP(1-(G27/5)))+(Asset_Management!$H$16*EXP(1-(H27/5))))))) -> 15.27294516
A28: 1983-06-01 | B28: 60 | C28: 3: Fair | D28: 3: Moderate | E28: 29.26027397 | F28: 30.73972603 | G28: 3 | H28: 3 | I28: =IF(B28="","",IF(C28="","",IF(D28="","",10*((Asset_Management!$H$14*EXP(1-(IF((E28/B28)<0,0,(E28/B28)))))+(Asset_Management!$H$15*EXP(1-(G28/5)))+(Asset_Management!$H$16*EXP(1-(H28/5))))))) -> 15.27294516
A29: 1983-06-01 | B29: 60 | C29: 3: Fair | D29: 3: Moderate | E29: 29.26027397 | F29: 30.73972603 | G29: 3 | H29: 3 | I29: =IF(B29="","",IF(C29="","",IF(D29="","",10*((Asset_Management!$H$14*EXP(1-(IF((E29/B29)<0,0,(E29/B29)))))+(Asset_Management!$H$15*EXP(1-(G29/5)))+(Asset_Management!$H$16*EXP(1-(H29/5))))))) -> 15.27294516
A30: 1983-06-01 | B30: 60 | C30: 3: Fair | D30: 3: Moderate | E30: 29.26027397 | F30: 30.73972603 | G30: 3 | H30: 3 | I30: =IF(B30="","",IF(C30="","",IF(D30="","",10*((Asset_Management!$H$14*EXP(1-(IF((E30/B30)<0,0,(E30/B30)))))+(Asset_Management!$H$15*EXP(1-(G30/5)))+(Asset_Management!$H$16*EXP(1-(H30/5))))))) -> 15.27294516
A31: 1983-06-01 | B31: 60 | C31: 3: Fair | D31: 2: Major | E31: 29.26027397 | F31: 30.73972603 | G31: 3 | H31: 2 | I31: =IF(B31="","",IF(C31="","",IF(D31="","",10*((Asset_Management!$H$14*EXP(1-(IF((E31/B31)<0,0,(E31/B31)))))+(Asset_Management!$H$15*EXP(1-(G31/5)))+(Asset_Management!$H$16*EXP(1-(H31/5))))))) -> 16.59412157
A32: 1983-06-01 | B32: 60 | C32: 2: Poor | D32: 2: Major | E32: 29.26027397 | F32: 30.73972603 | G32: 2 | H32: 2 | I32: =IF(B32="","",IF(C32="","",IF(D32="","",10*((Asset_Management!$H$14*EXP(1-(IF((E32/B32)<0,0,(E32/B32)))))+(Asset_Management!$H$15*EXP(1-(G32/5)))+(Asset_Management!$H$16*EXP(1-(H32/5))))))) -> 17.91529798
A33: 1983-06-01 | B33: 60 | C33: 2: Poor | D33: 2: Major | E33: 29.26027397 | F33: 30.73972603 | G33: 2 | H33: 2 | I33: =IF(B33="","",IF(C33="","",IF(D33="","",10*((Asset_Management!$H$14*EXP(1-(IF((E33/B33)<0,0,(E33/B33)))))+(Asset_Management!$H$15*EXP(1-(G33/5)))+(Asset_Management!$H$16*EXP(1-(H33/5))))))) -> 17.91529798
A34: 1997-08-10 | B34: 60 | C34: 2: Poor | D34: 4: Minor | E34: 43.4630137 | F34: 16.5369863 | G34: 2 | H34: 4 | I34: =IF(B34="","",IF(C34="","",IF(D34="","",10*((Asset_Management!$H$14*EXP(1-(IF((E34/B34)<0,0,(E34/B34)))))+(Asset_Management!$H$15*EXP(1-(G34/5)))+(Asset_Management!$H$16*EXP(1-(H34/5))))))) -> 14.8087712
A35: 1997-08-10 | B35: 60 | C35: 2: Poor | D35: 4: Minor | E35: 43.4630137 | F35: 16.5369863 | G35: 2 | H35: 4 | I35: =IF(B35="","",IF(C35="","",IF(D35="","",10*((Asset_Management!$H$14*EXP(1-(IF((E35/B35)<0,0,(E35/B35)))))+(Asset_Management!$H$15*EXP(1-(G35/5)))+(Asset_Management!$H$16*EXP(1-(H35/5))))))) -> 14.8087712
A36: 1997-08-10 | B36: 60 | C36: 2: Poor | D36: 3: Moderate | E36: 43.4630137 | F36: 16.5369863 | G36: 2 | H36: 3 | I36: =IF(B36="","",IF(C36="","",IF(D36="","",10*((Asset_Management!$H$14*EXP(1-(IF((E36/B36)<0,0,(E36/B36)))))+(Asset_Management!$H$15*EXP(1-(G36/5)))+(Asset_Management!$H$16*EXP(1-(H36/5))))))) -> 15.89045896
A37: 1997-08-10 | B37: 60 | C37: 4: Good | D37: 4: Minor | E37: 43.4630137 | F37: 16.5369863 | G37: 4 | H37: 4 | I37: =IF(B37="","",IF(C37="","",IF(D37="","",10*((Asset_Management!$H$14*EXP(1-(IF((E37/B37)<0,0,(E37/B37)))))+(Asset_Management!$H$15*EXP(1-(G37/5)))+(Asset_Management!$H$16*EXP(1-(H37/5))))))) -> 12.40590704
A38: 1997-08-10 | B38: 60 | C38: 2: Poor | D38: 3: Moderate | E38: 43.4630137 | F38: 16.5369863 | G38: 2 | H38: 3 | I38: =IF(B38="","",IF(C38="","",IF(D38="","",10*((Asset_Management!$H$14*EXP(1-(IF((E38/B38)<0,0,(E38/B38)))))+(Asset_Management!$H$15*EXP(1-(G38/5)))+(Asset_Management!$H$16*EXP(1-(H38/5))))))) -> 15.89045896
A39: 1997-08-10 | B39: 60 | C39: 2: Poor | D39: 3: Moderate | E39: 43.4630137 | F39: 16.5369863 | G39: 2 | H39: 3 | I39: =IF(B39="","",IF(C39="","",IF(D39="","",10*((Asset_Management!$H$14*EXP(1-(IF((E39/B39)<0,0,(E39/B39)))))+(Asset_Management!$H$15*EXP(1-(G39/5)))+(Asset_Management!$H$16*EXP(1-(H39/5))))))) -> 15.89045896
A40: 1997-08-10 | B40: 60 | C40: 2: Poor | D40: 3: Moderate | E40: 43.4630137 | F40: 16.5369863 | G40: 2 | H40: 3 | I40: =IF(B40="","",IF(C40="","",IF(D40="","",10*((Asset_Management!$H$14*EXP(1-(IF((E40/B40)<0,0,(E40/B40)))))+(Asset_Management!$H$15*EXP(1-(G40/5)))+(Asset_Management!$H$16*EXP(1-(H40/5))))))) -> 15.89045896
A41: 1997-08-10 | B41: 60 | C41: 4: Good | D41: 1: Catastrophic | E41: 43.4630137 | F41: 16.5369863 | G41: 4 | H41: 1 | I41: =IF(B41="","",IF(C41="","",IF(D41="","",10*((Asset_Management!$H$14*EXP(1-(IF((E41/B41)<0,0,(E41/B41)))))+(Asset_Management!$H$15*EXP(1-(G41/5)))+(Asset_Management!$H$16*EXP(1-(H41/5))))))) -> 16.42245972
A42: 1981-06-01 | B42: 75 | C42: 3: Fair | D42: 3: Moderate | E42: 42.26027397 | F42: 32.73972603 | G42: 3 | H42: 3 | I42: =IF(B42="","",IF(C42="","",IF(D42="","",10*((Asset_Management!$H$14*EXP(1-(IF((E42/B42)<0,0,(E42/B42)))))+(Asset_Management!$H$15*EXP(1-(G42/5)))+(Asset_Management!$H$16*EXP(1-(H42/5))))))) -> 15.02925392
A43: 1981-06-01 | B43: 75 | C43: 4: Good | D43: 1: Catastrophic | E43: 42.26027397 | F43: 32.73972603 | G43: 4 | H43: 1 | I43: =IF(B43="","",IF(C43="","",IF(D43="","",10*((Asset_Management!$H$14*EXP(1-(IF((E43/B43)<0,0,(E43/B43)))))+(Asset_Management!$H$15*EXP(1-(G43/5)))+(Asset_Management!$H$16*EXP(1-(H43/5))))))) -> 16.88243108
A44: 1981-06-01 | B44: 75 | C44: 5: Excellent | D44: 1: Catastrophic | E44: 42.26027397 | F44: 32.73972603 | G44: 5 | H44: 1 | I44: =IF(B44="","",IF(C44="","",IF(D44="","",10*((Asset_Management!$H$14*EXP(1-(IF((E44/B44)<0,0,(E44/B44)))))+(Asset_Management!$H$15*EXP(1-(G44/5)))+(Asset_Management!$H$16*EXP(1-(H44/5))))))) -> 15.99682005
A45: 1997-08-10 | B45: 25 | C45: 3: Fair | D45: 3: Moderate | E45: 8.463013699 | F45: 16.5369863 | G45: 3 | H45: 3 | I45: =IF(B45="","",IF(C45="","",IF(D45="","",10*((Asset_Management!$H$14*EXP(1-(IF((E45/B45)<0,0,(E45/B45)))))+(Asset_Management!$H$15*EXP(1-(G45/5)))+(Asset_Management!$H$16*EXP(1-(H45/5))))))) -> 15.80991135
A46: 1997-08-10 | B46: 25 | C46: 1: Very Poor | D46: 4: Minor | E46: 8.463013699 | F46: 16.5369863 | G46: 1 | H46: 4 | I46: =IF(B46="","",IF(C46="","",IF(D46="","",10*((Asset_Management!$H$14*EXP(1-(IF((E46/B46)<0,0,(E46/B46)))))+(Asset_Management!$H$15*EXP(1-(G46/5)))+(Asset_Management!$H$16*EXP(1-(H46/5))))))) -> 17.66308852
A47: 1997-08-10 | B47: 25 | C47: 3: Fair | D47: 4: Minor | E47: 8.463013699 | F47: 16.5369863 | G47: 3 | H47: 4 | I47: =IF(B47="","",IF(C47="","",IF(D47="","",10*((Asset_Management!$H$14*EXP(1-(IF((E47/B47)<0,0,(E47/B47)))))+(Asset_Management!$H$15*EXP(1-(G47/5)))+(Asset_Management!$H$16*EXP(1-(H47/5))))))) -> 14.72822359
A48: 1997-08-10 | B48: 25 | C48: 3: Fair | D48: 4: Minor | E48: 8.463013699 | F48: 16.5369863 | G48: 3 | H48: 4 | I48: =IF(B48="","",IF(C48="","",IF(D48="","",10*((Asset_Management!$H$14*EXP(1-(IF((E48/B48)<0,0,(E48/B48)))))+(Asset_Management!$H$15*EXP(1-(G48/5)))+(Asset_Management!$H$16*EXP(1-(H48/5))))))) -> 14.72822359
A49: 1997-08-10 | B49: 25 | C49: 3: Fair | D49: 4: Minor | E49: 8.463013699 | F49: 16.5369863 | G49: 3 | H49: 4 | I49: =IF(B49="","",IF(C49="","",IF(D49="","",10*((Asset_Management!$H$14*EXP(1-(IF((E49/B49)<0,0,(E49/B49)))))+(Asset_Management!$H$15*EXP(1-(G49/5)))+(Asset_Management!$H$16*EXP(1-(H49/5))))))) -> 14.72822359
A50: 1997-08-10 | B50: 25 | C50: 3: Fair | D50: 4: Minor | E50: 8.463013699 | F50: 16.5369863 | G50: 3 | H50: 4 | I50: =IF(B50="","",IF(C50="","",IF(D50="","",10*((Asset_Management!$H$14*EXP(1-(IF((E50/B50)<0,0,(E50/B50)))))+(Asset_Management!$H$15*EXP(1-(G50/5)))+(Asset_Management!$H$16*EXP(1-(H50/5))))))) -> 14.72822359
A51: 1997-08-10 | B51: 25 | C51: 3: Fair | D51: 4: Minor | E51: 8.463013699 | F51: 16.5369863 | G51: 3 | H51: 4 | I51: =IF(B51="","",IF(C51="","",IF(D51="","",10*((Asset_Management!$H$14*EXP(1-(IF((E51/B51)<0,0,(E51/B51)))))+(Asset_Management!$H$15*EXP(1-(G51/5)))+(Asset_Management!$H$16*EXP(1-(H51/5))))))) -> 14.72822359
A52: 1997-08-10 | B52: 25 | C52: 3: Fair | D52: 4: Minor | E52: 8.463013699 | F52: 16.5369863 | G52: 3 | H52: 4 | I52: =IF(B52="","",IF(C52="","",IF(D52="","",10*((Asset_Management!$H$14*EXP(1-(IF((E52/B52)<0,0,(E52/B52)))))+(Asset_Management!$H$15*EXP(1-(G52/5)))+(Asset_Management!$H$16*EXP(1-(H52/5))))))) -> 14.72822359
A53: 1994-03-10 | B53: 25 | C53: 3: Fair | D53: 4: Minor | E53: 5.04109589 | F53: 19.95890411 | G53: 3 | H53: 4 | I53: =IF(B53="","",IF(C53="","",IF(D53="","",10*((Asset_Management!$H$14*EXP(1-(IF((E53/B53)<0,0,(E53/B53)))))+(Asset_Management!$H$15*EXP(1-(G53/5)))+(Asset_Management!$H$16*EXP(1-(H53/5))))))) -> 15.29668084
A54: 1983-06-01 | B54: 40 | C54: 3: Fair | D54: 4: Minor | E54: 9.260273973 | F54: 30.73972603 | G54: 3 | H54: 4 | I54: =IF(B54="","",IF(C54="","",IF(D54="","",10*((Asset_Management!$H$14*EXP(1-(IF((E54/B54)<0,0,(E54/B54)))))+(Asset_Management!$H$15*EXP(1-(G54/5)))+(Asset_Management!$H$16*EXP(1-(H54/5))))))) -> 15.16593835
A55: 1983-06-01 | B55: 40 | C55: 3: Fair | D55: 3: Moderate | E55: 9.260273973 | F55: 30.73972603 | G55: 3 | H55: 3 | I55: =IF(B55="","",IF(C55="","",IF(D55="","",10*((Asset_Management!$H$14*EXP(1-(IF((E55/B55)<0,0,(E55/B55)))))+(Asset_Management!$H$15*EXP(1-(G55/5)))+(Asset_Management!$H$16*EXP(1-(H55/5))))))) -> 16.24762611
A56: 2001-05-01 | B56: 40 | C56: 3: Fair | D56: 3: Moderate | E56: 27.1890411 | F56: 12.8109589 | G56: 3 | H56: 3 | I56: =IF(B56="","",IF(C56="","",IF(D56="","",10*((Asset_Management!$H$14*EXP(1-(IF((E56/B56)<0,0,(E56/B56)))))+(Asset_Management!$H$15*EXP(1-(G56/5)))+(Asset_Management!$H$16*EXP(1-(H56/5))))))) -> 14.6896078
A57: 1981-06-01 | B57: 50 | C57: 3: Fair | D57: 3: Moderate | E57: 17.26027397 | F57: 32.73972603 | G57: 3 | H57: 3 | I57: =IF(B57="","",IF(C57="","",IF(D57="","",10*((Asset_Management!$H$14*EXP(1-(IF((E57/B57)<0,0,(E57/B57)))))+(Asset_Management!$H$15*EXP(1-(G57/5)))+(Asset_Management!$H$16*EXP(1-(H57/5))))))) -> 15.78409154
A58: 1981-06-01 | B58: 50 | C58: 3: Fair | D58: 3: Moderate | E58: 17.26027397 | F58: 32.73972603 | G58: 3 | H58: 3 | I58: =IF(B58="","",IF(C58="","",IF(D58="","",10*((Asset_Management!$H$14*EXP(1-(IF((E58/B58)<0,0,(E58/B58)))))+(Asset_Management!$H$15*EXP(1-(G58/5)))+(Asset_Management!$H$16*EXP(1-(H58/5))))))) -> 15.78409154
A59: 1981-06-01 | B59: 50 | C59: 3: Fair | D59: 2: Major | E59: 17.26027397 | F59: 32.73972603 | G59: 3 | H59: 2 | I59: =IF(B59="","",IF(C59="","",IF(D59="","",10*((Asset_Management!$H$14*EXP(1-(IF((E59/B59)<0,0,(E59/B59)))))+(Asset_Management!$H$15*EXP(1-(G59/5)))+(Asset_Management!$H$16*EXP(1-(H59/5))))))) -> 17.10526795
A60: 2000-04-20 | B60: 50 | C60: 2: Poor | D60: 2: Major | E60: 36.15890411 | F60: 13.84109589 | G60: 2 | H60: 2 | I60: =IF(B60="","",IF(C60="","",IF(D60="","",10*((Asset_Management!$H$14*EXP(1-(IF((E60/B60)<0,0,(E60/B60)))))+(Asset_Management!$H$15*EXP(1-(G60/5)))+(Asset_Management!$H$16*EXP(1-(H60/5))))))) -> 17.21481335
A61: 1994-03-10 | B61: 20 | C61: 2: Poor | D61: 2: Major | E61: 0.04109589041 | F61: 19.95890411 | G61: 2 | H61: 2 | I61: =IF(B61="","",IF(C61="","",IF(D61="","",10*((Asset_Management!$H$14*EXP(1-(IF((E61/B61)<0,0,(E61/B61)))))+(Asset_Management!$H$15*EXP(1-(G61/5)))+(Asset_Management!$H$16*EXP(1-(H61/5))))))) -> 20.00235451
A62: 1994-03-10 | B62: 20 | C62: 1: Very Poor | D62: 3: Moderate | E62: 0.04109589041 | F62: 19.95890411 | G62: 1 | H62: 3 | I62: =IF(B62="","",IF(C62="","",IF(D62="","",10*((Asset_Management!$H$14*EXP(1-(IF((E62/B62)<0,0,(E62/B62)))))+(Asset_Management!$H$15*EXP(1-(G62/5)))+(Asset_Management!$H$16*EXP(1-(H62/5))))))) -> 20.29486661
A63: 1994-03-10 | B63: 30 | C63: 3: Fair | D63: 4: Minor | E63: 10.04109589 | F63: 19.95890411 | G63: 3 | H63: 4 | I63: =IF(B63="","",IF(C63="","",IF(D63="","",10*((Asset_Management!$H$14*EXP(1-(IF((E63/B63)<0,0,(E63/B63)))))+(Asset_Management!$H$15*EXP(1-(G63/5)))+(Asset_Management!$H$16*EXP(1-(H63/5))))))) -> 14.7430453
A64: 1983-06-01 | B64: 35 | C64: 3: Fair | D64: 4: Minor | E64: 4.260273973 | F64: 30.73972603 | G64: 3 | H64: 4 | I64: =IF(B64="","",IF(C64="","",IF(D64="","",10*((Asset_Management!$H$14*EXP(1-(IF((E64/B64)<0,0,(E64/B64)))))+(Asset_Management!$H$15*EXP(1-(G64/5)))+(Asset_Management!$H$16*EXP(1-(H64/5))))))) -> 15.6664127
A65: 1983-06-01 | B65: 35 | C65: 3: Fair | D65: 4: Minor | E65: 4.260273973 | F65: 30.73972603 | G65: 3 | H65: 4 | I65: =IF(B65="","",IF(C65="","",IF(D65="","",10*((Asset_Management!$H$14*EXP(1-(IF((E65/B65)<0,0,(E65/B65)))))+(Asset_Management!$H$15*EXP(1-(G65/5)))+(Asset_Management!$H$16*EXP(1-(H65/5))))))) -> 15.6664127
A66: 2008-11-15 | B66: 15 | C66: 3: Fair | D66: 4: Minor | E66: 9.736986301 | F66: 5.263013699 | G66: 3 | H66: 4 | I66: =IF(B66="","",IF(C66="","",IF(D66="","",10*((Asset_Management!$H$14*EXP(1-(IF((E66/B66)<0,0,(E66/B66)))))+(Asset_Management!$H$15*EXP(1-(G66/5)))+(Asset_Management!$H$16*EXP(1-(H66/5))))))) -> 13.6935083
A67: 1983-06-01 | B67: 30 | C67: 3: Fair | D67: 4: Minor | E67: =B67-F67 -> -0.7397260274 | F67: =(TODAY()-A67)/365 -> 30.73972603 | G67: =IF(LEN(C67)>3,LEFT(C67,1),C67) -> 3 | H67: =IF(LEN(D67)>3,LEFT(D67,1),D67) -> 4 | I67: =IF(B67="","",IF(C67="","",IF(D67="","",10*((Asset_Management!$H$14*EXP(1-(IF((E67/B67)<0,0,(E67/B67)))))+(Asset_Management!$H$15*EXP(1-(G67/5)))+(Asset_Management!$H$16*EXP(1-(H67/5))))))) -> 16.28947348
A68: 1983-06-01 | B68: 30 | C68: 3: Fair | D68: 4: Minor | E68: -0.7397260274 | F68: 30.73972603 | G68: 3 | H68: 4 | I68: =IF(B68="","",IF(C68="","",IF(D68="","",10*((Asset_Management!$H$14*EXP(1-(IF((E68/B68)<0,0,(E68/B68)))))+(Asset_Management!$H$15*EXP(1-(G68/5)))+(Asset_Management!$H$16*EXP(1-(H68/5))))))) -> 16.28947348
A69: 1983-06-01 | B69: 30 | C69: 3: Fair | D69: 4: Minor | E69: -0.7397260274 | F69: 30.73972603 | G69: 3 | H69: 4 | I69: =IF(B69="","",IF(C69="","",IF(D69="","",10*((Asset_Management!$H$14*EXP(1-(IF((E69/B69)<0,0,(E69/B69)))))+(Asset_Management!$H$15*EXP(1-(G69/5)))+(Asset_Management!$H$16*EXP(1-(H69/5))))))) -> 16.28947348
A70: 1983-06-01 | B70: 30 | C70: 3: Fair | D70: 4: Minor | E70: -0.7397260274 | F70: 30.73972603 | G70: 3 | H70: 4 | I70: =IF(B70="","",IF(C70="","",IF(D70="","",10*((Asset_Management!$H$14*EXP(1-(IF((E70/B70)<0,0,(E70/B70)))))+(Asset_Management!$H$15*EXP(1-(G70/5)))+(Asset_Management!$H$16*EXP(1-(H70/5))))))) -> 16.28947348
A71: 1983-06-01 | B71: 30 | C71: 3: Fair | D71: 3: Moderate | E71: -0.7397260274 | F71: 30.73972603 | G71: 3 | H71: 3 | I71: =IF(B71="","",IF(C71="","",IF(D71="","",10*((Asset_Management!$H$14*EXP(1-(IF((E71/B71)<0,0,(E71/B71)))))+(Asset_Management!$H$15*EXP(1-(G71/5)))+(Asset_Management!$H$16*EXP(1-(H71/5))))))) -> 17.37116124
A72: 1983-06-01 | B72: 30 | C72: 3: Fair | D72: 3: Moderate | E72: -0.7397260274 | F72: 30.73972603 | G72: 3 | H72: 3 | I72: =IF(B72="","",IF(C72="","",IF(D72="","",10*((Asset_Management!$H$14*EXP(1-(IF((E72/B72)<0,0,(E72/B72)))))+(Asset_Management!$H$15*EXP(1-(G72/5)))+(Asset_Management!$H$16*EXP(1-(H72/5))))))) -> 17.37116124
A73: 1994-03-10 | B73: 35 | C73: 3: Fair | D73: 3: Moderate | E73: 15.04109589 | F73: 19.95890411 | G73: 3 | H73: 3 | I73: =IF(B73="","",IF(C73="","",IF(D73="","",10*((Asset_Management!$H$14*EXP(1-(IF((E73/B73)<0,0,(E73/B73)))))+(Asset_Management!$H$15*EXP(1-(G73/5)))+(Asset_Management!$H$16*EXP(1-(H73/5))))))) -> 15.4720315
A74: 1994-03-10 | B74: 35 | C74: 3: Fair | D74: 1: Catastrophic | E74: 15.04109589 | F74: 19.95890411 | G74: 3 | H74: 1 | I74: =IF(B74="","",IF(C74="","",IF(D74="","",10*((Asset_Management!$H$14*EXP(1-(IF((E74/B74)<0,0,(E74/B74)))))+(Asset_Management!$H$15*EXP(1-(G74/5)))+(Asset_Management!$H$16*EXP(1-(H74/5))))))) -> 18.40689643
A75: 1994-03-10 | B75: 35 | C75: 3: Fair | D75: 2: Major | E75: 15.04109589 | F75: 19.95890411 | G75: 3 | H75: 2 | I75: =IF(B75="","",IF(C75="","",IF(D75="","",10*((Asset_Management!$H$14*EXP(1-(IF((E75/B75)<0,0,(E75/B75)))))+(Asset_Management!$H$15*EXP(1-(G75/5)))+(Asset_Management!$H$16*EXP(1-(H75/5))))))) -> 16.79320791
A76: 2002-07-01 | B76: 15 | C76: 2: Poor | D76: 5: Insignificant | E76: 3.356164384 | F76: 11.64383562 | G76: 2 | H76: 5 | I76: =IF(B76="","",IF(C76="","",IF(D76="","",10*((Asset_Management!$H$14*EXP(1-(IF((E76/B76)<0,0,(E76/B76)))))+(Asset_Management!$H$15*EXP(1-(G76/5)))+(Asset_Management!$H$16*EXP(1-(H76/5))))))) -> 15.63511414
A77: 2002-07-01 | B77: 15 | C77: 2: Poor | D77: 5: Insignificant | E77: 3.356164384 | F77: 11.64383562 | G77: 2 | H77: 5 | I77: =IF(B77="","",IF(C77="","",IF(D77="","",10*((Asset_Management!$H$14*EXP(1-(IF((E77/B77)<0,0,(E77/B77)))))+(Asset_Management!$H$15*EXP(1-(G77/5)))+(Asset_Management!$H$16*EXP(1-(H77/5))))))) -> 15.63511414
A78: 2002-07-01 | B78: 15 | C78: 4: Good | D78: 5: Insignificant | E78: 3.356164384 | F78: 11.64383562 | G78: 4 | H78: 5 | I78: =IF(B78="","",IF(C78="","",IF(D78="","",10*((Asset_Management!$H$14*EXP(1-(IF((E78/B78)<0,0,(E78/B78)))))+(Asset_Management!$H$15*EXP(1-(G78/5)))+(Asset_Management!$H$16*EXP(1-(H78/5))))))) -> 13.23224997

Sheet Original_Project_Order (hidden)

Sheet Debt_Capacity
B2: Utility Budget and Debt Service Schedule
G4: Color Key for Financial Information
B5: Debt Service Schedule | G5: User-Entered Values (blue/purple) | H5: Estimated Dollar Amounts
H6: Fiscal Year ("FY####"); Loan/Debt Period
H7: Estimated Percent Amounts
G8: Calculated Values (green/red) | H8: Calculated Line Item Values
B9: Current Fiscal Year | H9: Calculated Total Values
H10: Negative Total Values or Unallowed Values
B11: FY2014 | G11: Information (white/gray) | H11: Line Items
H12: Headings / Titles
B14: Anticipated Loans/Debts | C14: Amount Borrowed (Principal only) | D14: Starting FY of Payments | E14: Period of Loan/Debt (yrs.) | F14: Annual Interest Rate | G14: =$B$11 -> FY2014 | H14: =CONCATENATE("FY",RIGHT(G14,4)+1) -> FY2015 | I14: FY2016 | J14: FY2017 | K14: FY2018 | L14: FY2019 | M14: FY2020 | N14: FY2021 | O14: FY2022 | P14: FY2023
B15: Loan 1 | C15: 500000 | D15: FY2005 | E15: 20 | F15: 0.045 | G15: =IF($D15="",0,IF(OR(RIGHT($D15,4)>RIGHT(G$14,4),(RIGHT(G$14,4)-RIGHT($D15,4))>$E15),0,IF($F15=0,$C15/$E15,$C15*(($F15*POWER(1+$F15,$E15))/(POWER(1+$F15,$E15)-1))))) -> 38438.07216 | H15: =IF($D15="",0,IF(OR(RIGHT($D15,4)>RIGHT(H$14,4),(RIGHT(H$14,4)-RIGHT($D15,4))>$E15),0,IF($F15=0,$C15/$E15,$C15*(($F15*POWER(1+$F15,$E15))/(POWER(1+$F15,$E15)-1))))) -> 38438.07216 | I15: 38438.07216 | J15: 38438.07216 | K15: 38438.07216 | L15: 38438.07216 | M15: 38438.07216 | N15: 38438.07216 | O15: 38438.07216 | P15: 38438.07216
B16: Loan 2 | C16: 2000000 | D16: FY2012 | E16: 20 | F16: 0.045 | G16: =IF($D16="",0,IF(OR(RIGHT($D16,4)>RIGHT(G$14,4),(RIGHT(G$14,4)-RIGHT($D16,4))>$E16),0,IF($F16=0,$C16/$E16,$C16*(($F16*POWER(1+$F16,$E16))/(POWER(1+$F16,$E16)-1))))) -> 153752.2886 | H16: 153752.2886 | I16: 153752.2886 | J16: 153752.2886 | K16: 153752.2886 | L16: 153752.2886 | M16: 153752.2886 | N16: 153752.2886 | O16: 153752.2886 | P16: 153752.2886
B17: Loan 3 | C17: 1000000 | D17: FY2014 | E17: 20 | F17: 0.045 | G17: 76876.14432 | H17: 76876.14432 | I17: 76876.14432 | J17: 76876.14432 | K17: 76876.14432 | L17: 76876.14432 | M17: 76876.14432 | N17: 76876.14432 | O17: 76876.14432 | P17: 76876.14432
B18: Loan 4 | C18: 1500000 | D18: FY2018 | E18: 20 | F18: 0.045 | G18: 0 | H18: 0 | I18: 0 | J18: 0 | K18: 115314.2165 | L18: 115314.2165 | M18: 115314.2165 | N18: 115314.2165 | O18: 115314.2165 | P18: 115314.2165
B19: Loan 5 | E19: 20 | F19: 0.045 | G19: 0 | H19: 0 | I19: 0 | J19: 0 | K19: 0 | L19: 0 | M19: 0 | N19: 0 | O19: 0 | P19: 0
B20: Loan 6 | E20: 20 | F20: 0.045 | G20: 0 | H20: 0 | I20: 0 | J20: 0 | K20: 0 | L20: 0 | M20: 0 | N20: 0 | O20: 0 | P20: 0
B21: Loan 7 | E21: 20 | F21: 0.045 | G21: 0 | H21: 0 | I21: 0 | J21: 0 | K21: 0 | L21: 0 | M21: 0 | N21: 0 | O21: 0 | P21: 0
B22: Loan 8 | E22: 20 | F22: 0.045 | G22: 0 | H22: 0 | I22: 0 | J22: 0 | K22: 0 | L22: 0 | M22: 0 | N22: 0 | O22: 0 | P22: 0
B23: Loan 9 | E23: 20 | F23: 0.045 | G23: 0 | H23: 0 | I23: 0 | J23: 0 | K23: 0 | L23: 0 | M23: 0 | N23: 0 | O23: 0 | P23: 0
B24: Loan 10 | E24: 20 | F24: 0.045 | G24: 0 | H24: 0 | I24: 0 | J24: 0 | K24: 0 | L24: 0 | M24: 0 | N24: 0 | O24: 0 | P24: 0
B25: Total | G25: =SUM(G15:G24) -> 269066.5051 | H25: =SUM(H15:H24) -> 269066.5051 | I25: 269066.5051 | J25: 269066.5051 | K25: 384380.7216 | L25: 384380.7216 | M25: 384380.7216 | N25: 384380.7216 | O25: 384380.7216 | P25: 384380.7216
B27: Utility Budget
B31: COSTS | E31: Percent Annual Increase | G31: =$B$11 -> FY2014 | H31: =CONCATENATE("FY",RIGHT($G$31,4)+1,CHAR(10)," (estimate)") -> FY2015 (estimate) | I31: =CONCATENATE("FY",RIGHT($G$31,4)+2,CHAR(10)," (estimate)") -> FY2016 (estimate) | J31: =CONCATENATE("FY",RIGHT($G$31,4)+3,CHAR(10)," (estimate)") -> FY2017 (estimate) | K31: =CONCATENATE("FY",RIGHT($G$31,4)+4,CHAR(10)," (estimate)") -> FY2018 (estimate) | L31: =CONCATENATE("FY",RIGHT($G$31,4)+5,CHAR(10)," (estimate)") -> FY2019 (estimate) | M31: =CONCATENATE("FY",RIGHT($G$31,4)+6,CHAR(10)," (estimate)") -> FY2020 (estimate) | N31: =CONCATENATE("FY",RIGHT($G$31,4)+7,CHAR(10)," (estimate)") -> FY2021 (estimate) | O31: =CONCATENATE("FY",RIGHT($G$31,4)+8,CHAR(10)," (estimate)") -> FY2022 (estimate) | P31: =CONCATENATE("FY",RIGHT($G$31,4)+9,CHAR(10)," (estimate)") -> FY2023 (estimate)
B32: Salaries and Wages (default % inc. = 3.00%) | E32: 0.03 | G32: 3500000 | H32: =G32*(1+$E$32) -> 3605000 | I32: 3713150 | J32: 3824544.5 | K32: 3939280.835 | L32: 4057459.26 | M32: 4179183.038 | N32: 4304558.529 | O32: 4433695.285 | P32: 4566706.143
B33: Fringe Benefits (default % inc. = 5.00%) | E33: 0.05 | G33: =0.3*G32 -> 1050000 | H33: =G33*(1+$E$33) -> 1102500 | I33: 1157625 | J33: 1215506.25 | K33: 1276281.562 | L33: 1340095.641 | M33: 1407100.423 | N33: 1477455.444 | O33: 1551328.216 | P33: 1628894.627
B34: Non-personnel Costs (default % inc. = 4.00%) | E34: 0.04 | G34: 800000 | H34: =G34*(1+$E$34) -> 832000 | I34: 865280 | J34: 899891.2 | K34: 935886.848 | L34: 973322.3219 | M34: 1012255.215 | N34: 1052745.423 | O34: 1094855.24 | P34: 1138649.45
B35: Debt Service | G35: =G25 -> 269066.5051 | H35: 269066.5051 | I35: 269066.5051 | J35: 269066.5051 | K35: 384380.7216 | L35: 384380.7216 | M35: 384380.7216 | N35: 384380.7216 | O35: 384380.7216 | P35: 384380.7216
B36: Capital Expenditures | G36: 500000 | H36: 2500000 | I36: 500000 | J36: 1500000 | K36: 250000 | N36: 1500000
B37: Savings into Capital Expense Fund | G37: 50000 | H37: 50000 | I37: 50000 | J37: 50000 | K37: 50000 | L37: 50000 | M37: 50000 | N37: 50000 | O37: 50000 | P37: 50000
B38: Other - Add additional categories here if needed | G38: 0 | H38: 0 | I38: 0 | J38: 0 | K38: 0 | L38: 0 | M38: 0 | N38: 0 | O38: 0 | P38: 0
B39: Total | G39: =SUM(G32:G38) -> 6169066.505 | H39: =SUM(H32:H38) -> 8358566.505 | I39: =SUM(I32:I38) -> 6555121.505 | J39: =SUM(J32:J38) -> 7759008.455 | K39: =SUM(K32:K38) -> 6835829.967 | L39: =SUM(L32:L38) -> 6805257.944 | M39: 7032919.397 | N39: 8769140.118 | O39: 7514259.463 | P39: 7768630.942
B41: REVENUES | G41: =$B$11 -> FY2014 | H41: =CONCATENATE("FY",RIGHT($G$31,4)+1,CHAR(10)," (estimate)") -> FY2015 (estimate) | I41: =CONCATENATE("FY",RIGHT($G$31,4)+2,CHAR(10)," (estimate)") -> FY2016 (estimate) | J41: =CONCATENATE("FY",RIGHT($G$31,4)+3,CHAR(10)," (estimate)") -> FY2017 (estimate) | K41: =CONCATENATE("FY",RIGHT($G$31,4)+4,CHAR(10)," (estimate)") -> FY2018 (estimate) | L41: =CONCATENATE("FY",RIGHT($G$31,4)+5,CHAR(10)," (estimate)") -> FY2019 (estimate) | M41: =CONCATENATE("FY",RIGHT($G$31,4)+6,CHAR(10)," (estimate)") -> FY2020 (estimate) | N41: =CONCATENATE("FY",RIGHT($G$31,4)+7,CHAR(10)," (estimate)") -> FY2021 (estimate) | O41: =CONCATENATE("FY",RIGHT($G$31,4)+8,CHAR(10)," (estimate)") -> FY2022 (estimate) | P41: =CONCATENATE("FY",RIGHT($G$31,4)+9,CHAR(10)," (estimate)") -> FY2023 (estimate)
B42: Residential Customer Fees - Usage Charges | G42: 1300000 | H42: =G42*(1+H43) -> 1300000 | I42: 1300000 | J42: 1326000 | K42: 1379040 | L42: 1420411.2 | M42: 1463023.536 | N42: 1506914.242 | O42: 1552121.669 | P42: 1598685.319
B43: Percent Increase for Residential Customer Fees - Usage Charges | H43: 0 | I43: 0 | J43: 0.02 | K43: 0.04 | L43: 0.03 | M43: 0.03 | N43: 0.03 | O43: 0.03 | P43: 0.03
B44: Residential Customer Fees - Other Charges | G44: 500000 | H44: =G44*(1+H45) -> 500000 | I44: =H44*(1+I45) -> 500000 | J44: =I44*(1+J45) -> 510000 | K44: =J44*(1+K45) -> 530400 | L44: =K44*(1+L45) -> 546312 | M44: =L44*(1+M45) -> 562701.36 | N44: =M44*(1+N45) -> 579582.4008 | O44: =N44*(1+O45) -> 596969.8728 | P44: =O44*(1+P45) -> 614878.969
B45: Percent Increase for Residential Customer Fees - Other Charges | H45: 0 | I45: 0 | J45: 0.02 | K45: 0.04 | L45: 0.03 | M45: 0.03 | N45: 0.03 | O45: 0.03 | P45: 0.03
B46: Commercial Customer Fees - Usage Charges | G46: 4200000 | H46: =G46*(1+H47) -> 4200000 | I46: =H46*(1+I47) -> 4200000 | J46: =I46*(1+J47) -> 4200000 | K46: =J46*(1+K47) -> 4410000 | L46: =K46*(1+L47) -> 4542300 | M46: =L46*(1+M47) -> 4678569 | N46: =M46*(1+N47) -> 4865711.76 | O46: =N46*(1+O47) -> 5011683.113 | P46: =O46*(1+P47) -> 5212150.437
B47: Percent Increase for Commercial Customer Fees - Usage Charges | H47: 0 | I47: 0 | J47: 0 | K47: 0.05 | L47: 0.03 | M47: 0.03 | N47: 0.04 | O47: 0.03 | P47: 0.04
B48: Commercial Customer Fees - Other Charges | G48: 650000 | H48: =G48*(1+H49) -> 650000 | I48: =H48*(1+I49) -> 650000 | J48: =I48*(1+J49) -> 650000 | K48: =J48*(1+K49) -> 682500 | L48: =K48*(1+L49) -> 702975 | M48: =L48*(1+M49) -> 724064.25 | N48: =M48*(1+N49) -> 753026.82 | O48: =N48*(1+O49) -> 775617.6246 | P48: =O48*(1+P49) -> 806642.3296
B49: Percent Increase for Commercial Customer Fees - Other Charges | H49: 0 | I49: 0 | J49: 0 | K49: 0.05 | L49: 0.03 | M49: 0.03 | N49: 0.04 | O49: 0.03 | P49: 0.04
B50: Borrowing | G50: 0 | H50: 2000000 | I50: 0 | J50: 1000000 | K50: 0 | L50: 0 | M50: 0 | N50: 1500000 | O50: 0 | P50: 0
B51: Use of Surplus | G51: 0 | H51: 0 | I51: 500000 | J51: 500000 | K51: 0 | L51: 0 | M51: 0 | N51: 0 | O51: 0 | P51: 0
B52: Use of Funds from Capital Expense Account | G52: 500000 | H52: 0 | I52: 0 | J52: 0 | K52: 250000 | L52: 0 | M52: 0 | N52: 0 | O52: 0 | P52: 0
B53: Other - Add additional categories here if needed | G53: 0 | H53: 0 | I53: 0 | J53: 0 | K53: 0 | L53: 0 | M53: 0 | N53: 0 | O53: 0 | P53: 0
B54: Total | G54: =SUM(G42:G50) -> 6650000 | H54: =SUM(H42:H50) -> 8650000 | I54: =SUM(I42:I51) -> 7150000 | J54: 8186000.04 | K54: 7001940.18 | L54: 7211998.32 | M54: 7428358.266 | N54: 9205235.363 | O54: 7936392.4 | P54: 8232357.195
B56: SURPLUS/DEFICIT (cumulative) | G56: =G54-G39 -> 480933.4949 | H56: =G56+(H54-H39) -> 772366.9897 | I56: =H56+(I54-I39) -> 1367245.485 | J56: 1794237.069 | K56: 1960347.282 | L56: 2367087.658 | M56: 2762526.527 | N56: 3198621.772 | O56: 3620754.709 | P56: 4084480.963
B59: Now try testing out a few alternatives to maximize long-term suprlus and viability! For example, compare your utility's surpuls/deficit using large, infreqent rate increase vs. using small yearly increases. You can also try adjusting Savings into Capital Expense Fund, Use of Surplus, and Starting FY for any loans/debts.

Sheet Asset_Management
B2: Asset Inventory and Prioritization
B4: Start by listing your utility's assets in the inventory below. If you do not currently have a complete list of all assets, start by gathering information on your most critical assets first. This will allow you to prioritize these important assets. Then, over time, you can add in less critical assets to arrive at a complete inventory. After listing your assets in the Inventory, follow steps 1 - 4 to prioritize your assets.
B8: Step 0: Enable Macros (if not done already) | F8: Buttons and Instructions
F9: Step-by-step instructions are denoted in the cells to the left that are tan-green in color with dotted borders. Steps 0, 2, and 3 are to be completed manually by the user.
F11: Steps 1 and 4 (as well as the "Undo Step 4" function) are special instructions that are completed using "buttons." The tool performs these steps automatically when the user clicks on the button.
B12: Step 2: Hard-enter Any Desired Priority Numbers (e.g., 1, 2, 3) in Column B of the Asset Inventory Below
B14: Step 3: Enter Relative Importance (i.e., "weights") of the Three Decision Variables (applies to all inventory assets without a hard-entered priority number from Step 2) | F14: Remaining Useful Life | H14: 0.2 | J14: Default Starting Value = 20%
F15: Condition | H15: 0.4 | J15: Default Starting Value = 40%
F16: Impact of Failure | H16: 0.4 | J16: Default Starting Value = 40%
F17: Total | H17: =SUM(H14:H16) -> 1
F19: Color Key for Asset Inventory
F20: Required Fields | G20: Not used in Calculations
G21: Used in Calculations - Correspond to Decision Variables
F23: Optional Fields | G23: Not used in Calculations - Additional Information of Interest (may be added as desired)
C27: Required Fields | J27: Optional Fields
B28: Priority Number | C28: Asset ID (unique) | D28: Asset Name | E28: Service Start Date (mm/dd/yyyy) | F28: Manufacturer's Estimated Useful Life (yrs.) | G28: Condition Score (1 through 5) | H28: Impact of Failure Score (1 through 5) | I28: Priority Score | J28: Asset Location | K28: Aquisition Cost | L28: Replacement/Repair Cost | M28: Purchase Date | N28: Serial Number | O28: Model
C29: 1 | D29: V C PIPE | E29: 1965-06-30 | F29: 75 | G29: 2: Poor | H29: 3: Moderate | I29: 16.90963377 | J29: MAIN STREET | K29: 561349 | M29: 1965-06-30
C30: 2 | D30: V C PIPE | E30: 1965-06-30 | F30: 75 | G30: 2: Poor | H30: 3: Moderate
C31: 3 | D31: V C PIPE | E31: 1965-06-30 | F31: 75 | G31: 3: Fair | H31: 4: Minor
C32: 4 | D32: V C PIPE | E32: 1965-06-30 | F32: 75 | G32: 2: Poor | H32: 3: Moderate
C33: 5 | D33: V C PIPE | E33: 1965-06-30 | F33: 75 | G33: 1: Very Poor | H33: 3: Moderate
C34: 6 | D34: V C PIPE | E34: 1965-06-30 | F34: 75 | G34: 2: Poor | H34: 3: Moderate
C35: 7 | D35: V C PIPE | E35: 1965-06-30 | F35: 75 | G35: 2: Poor | H35: 2: Major
C36: 8 | D36: V C PIPE | E36: 1981-06-01 | F36: 75 | G36: 2: Poor | H36: 2: Major
C37: 9 | D37: V C PIPE | E37: 1981-06-01 | F37: 75 | G37: 3: Fair | H37: 4: Minor
C38: 10 | D38: V C PIPE | E38: 1981-06-01 | F38: 75 | G38: 3: Fair | H38: 4: Minor
C39: 11 | D39: V C PIPE | E39: 1997-08-10 | F39: 75 | G39: 3: Fair | H39: 1: Catastrophic
C40: 12 | D40: V C PIPE | E40: 1997-08-10 | F40: 75 | G40: 3: Fair | H40: 1: Catastrophic
C41: 13 | D41: V C PIPE | E41: 1997-08-10 | F41: 75 | G41: 2: Poor | H41: 1: Catastrophic
C42: 14 | D42: V C PIPE | E42: 1997-08-10 | F42: 75 | G42: 2: Poor | H42: 1: Catastrophic
C43: 15 | D43: V C PIPE | E43: 1997-08-10 | F43: 75 | G43: 3: Fair | H43: 4: Minor
C44: 16 | D44: DI PIPE | E44: 1981-06-01 | F44: 60 | G44: 3: Fair | H44: 4: Minor
C45: 17 | D45: DI PIPE | E45: 1981-06-01 | F45: 60 | G45: 1: Very Poor | H45: 4: Minor
C46: 18 | D46: DI PIPE | E46: 1981-06-01 | F46: 60 | G46: 3: Fair | H46: 4: Minor
C47: 19 | D47: DI PIPE | E47: 1981-06-01 | F47: 60 | G47: 3: Fair | H47: 4: Minor
C48: 20 | D48: DI PIPE | E48: 1981-06-01 | F48: 60 | G48: 3: Fair | H48: 4: Minor
C49: 21 | D49: DI PIPE | E49: 1981-06-01 | F49: 60 | G49: 3: Fair | H49: 4: Minor
C50: 22 | D50: DI PIPE | E50: 1981-06-01 | F50: 60 | G50: 3: Fair | H50: 4: Minor
C51: 23 | D51: DI PIPE | E51: 1981-06-01 | F51: 60 | G51: 3: Fair | H51: 4: Minor
C52: 24 | D52: DI PIPE | E52: 1981-06-01 | F52: 60 | G52: 3: Fair | H52: 4: Minor
C53: 25 | D53: DI PIPE | E53: 1981-06-01 | F53: 60 | G53: 3: Fair | H53: 4: Minor
C54: 26 | D54: DI PIPE | E54: 1983-06-01 | F54: 60 | G54: 3: Fair | H54: 3: Moderate
C55: 27 | D55: DI PIPE | E55: 1983-06-01 | F55: 60 | G55: 3: Fair | H55: 3: Moderate
C56: 28 | D56: DI PIPE | E56: 1983-06-01 | F56: 60 | G56: 3: Fair | H56: 3: Moderate
C57: 29 | D57: DI PIPE | E57: 1983-06-01 | F57: 60 | G57: 3: Fair | H57: 3: Moderate
C58: 30 | D58: DI PIPE | E58: 1983-06-01 | F58: 60 | G58: 3: Fair | H58: 2: Major
C59: 31 | D59: DI PIPE | E59: 1983-06-01 | F59: 60 | G59: 2: Poor | H59: 2: Major
C60: 32 | D60: DI PIPE | E60: 1983-06-01 | F60: 60 | G60: 2: Poor | H60: 2: Major
C61: 33 | D61: DI PIPE | E61: 1997-08-10 | F61: 60 | G61: 2: Poor | H61: 4: Minor
C62: 34 | D62: DI PIPE | E62: 1997-08-10 | F62: 60 | G62: 2: Poor | H62: 4: Minor
C63: 35 | D63: DI PIPE | E63: 1997-08-10 | F63: 60 | G63: 2: Poor | H63: 3: Moderate
C64: 36 | D64: DI PIPE | E64: 1997-08-10 | F64: 60 | G64: 4: Good | H64: 4: Minor
C65: 37 | D65: DI PIPE | E65: 1997-08-10 | F65: 60 | G65: 2: Poor | H65: 3: Moderate
C66: 38 | D66: DI PIPE | E66: 1997-08-10 | F66: 60 | G66: 2: Poor | H66: 3: Moderate
C67: 39 | D67: DI PIPE | E67: 1997-08-10 | F67: 60 | G67: 2: Poor | H67: 3: Moderate
C68: 40 | D68: DI PIPE | E68: 1997-08-10 | F68: 60 | G68: 4: Good | H68: 1: Catastrophic
C69: 41 | D69: Transmission - 1 | E69: 1981-06-01 | F69: 75 | G69: 3: Fair | H69: 3: Moderate
C70: 42 | D70: Transmission - 2 | E70: 1981-06-01 | F70: 75 | G70: 4: Good | H70: 1: Catastrophic
C71: 43 | D71: Transmission - 3 | E71: 1981-06-01 | F71: 75 | G71: 5: Excellent | H71: 1: Catastrophic
C72: 44 | D72: Pump - BPS A | E72: 1997-08-10 | F72: 25 | G72: 3: Fair | H72: 3: Moderate
C73: 45 | D73: Pump - BPS A | E73: 1997-08-10 | F73: 25 | G73: 1: Very Poor | H73: 4: Minor
C74: 46 | D74: Pump - BPS A | E74: 1997-08-10 | F74: 25 | G74: 3: Fair | H74: 4: Minor
C75: 47 | D75: Pump - BPS B | E75: 1997-08-10 | F75: 25 | G75: 3: Fair | H75: 4: Minor
C76: 48 | D76: Pump - BPS B | E76: 1997-08-10 | F76: 25 | G76: 3: Fair | H76: 4: Minor
C77: 49 | D77: Pump - BPS C | E77: 1997-08-10 | F77: 25 | G77: 3: Fair | H77: 4: Minor
C78: 50 | D78: Pump - BPS C | E78: 1997-08-10 | F78: 25 | G78: 3: Fair | H78: 4: Minor
C79: 51 | D79: Pump - BPS C | E79: 1997-08-10 | F79: 25 | G79: 3: Fair | H79: 4: Minor
C80: 52 | D80: Pump - BPS C | E80: 1994-03-10 | F80: 25 | G80: 3: Fair | H80: 4: Minor
C81: 53 | D81: Clarifier | E81: 1983-06-01 | F81: 40 | G81: 3: Fair | H81: 4: Minor
C82: 54 | D82: Clarifier | E82: 1983-06-01 | F82: 40 | G82: 3: Fair | H82: 3: Moderate
C83: 55 | D83: Clarifier | E83: 2001-05-01 | F83: 40 | G83: 3: Fair | H83: 3: Moderate
C84: 56 | D84: Storage Tank | E84: 1981-06-01 | F84: 50 | G84: 3: Fair | H84: 3: Moderate
C85: 57 | D85: Storage Tank | E85: 1981-06-01 | F85: 50 | G85: 3: Fair | H85: 3: Moderate
C86: 58 | D86: Storage Tank | E86: 1981-06-01 | F86: 50 | G86: 3: Fair | H86: 2: Major
C87: 59 | D87: Storage Tank | E87: 2000-04-20 | F87: 50 | G87: 2: Poor | H87: 2: Major
C88: 60 | D88: Slow Sand Tank | E88: 1994-03-10 | F88: 20 | G88: 2: Poor | H88: 2: Major
C89: 61 | D89: Slow Sand Tank | E89: 1994-03-10 | F89: 20 | G89: 1: Very Poor | H89: 3: Moderate
C90: 62 | D90: Flocculation Tank | E90: 1994-03-10 | F90: 30 | G90: 3: Fair | H90: 4: Minor
C91: 63 | D91: Clearwell #1 | E91: 1983-06-01 | F91: 35 | G91: 3: Fair | H91: 4: Minor
C92: 64 | D92: Clearwell #2 | E92: 1983-06-01 | F92: 35 | G92: 3: Fair | H92: 4: Minor
C93: 65 | D93: Back-up Generator | E93: 2008-11-15 | F93: 15 | G93: 3: Fair | H93: 4: Minor
C94: 66 | D94: Valves - North | E94: 1983-06-01 | F94: 30 | G94: 3: Fair | H94: 4: Minor
C95: 67 | D95: Valves - South | E95: 1983-06-01 | F95: 30 | G95: 3: Fair | H95: 4: Minor
C96: 68 | D96: Valves - Central | E96: 1983-06-01 | F96: 30 | G96: 3: Fair | H96: 4: Minor
C97: 69 | D97: Hydrants - North | E97: 1983-06-01 | F97: 30 | G97: 3: Fair | H97: 4: Minor
C98: 70 | D98: Hydrants - South | E98: 1983-06-01 | F98: 30 | G98: 3: Fair | H98: 3: Moderate
C99: 71 | D99: Hydrants - Central | E99: 1983-06-01 | F99: 30 | G99: 3: Fair | H99: 3: Moderate
C100: 72 | D100: Raw Water Pump | E100: 1994-03-10 | F100: 35 | G100: 3: Fair | H100: 3: Moderate
C101: 73 | D101: Raw Water Pump | E101: 1994-03-10 | F101: 35 | G101: 3: Fair | H101: 1: Catastrophic
C102: 74 | D102: Raw Water Pump | E102: 1994-03-10 | F102: 35 | G102: 3: Fair | H102: 2: Major
C103: 75 | D103: Meters - North | E103: 2002-07-01 | F103: 15 | G103: 2: Poor | H103: 5: Insignificant
C104: 76 | D104: Meters - South | E104: 2002-07-01 | F104: 15 | G104: 2: Poor | H104: 5: Insignificant
C105: 77 | D105: Meters - Central | E105: 2002-07-01 | F105: 15 | G105: 4: Good | H105: 5: Insignificant

Sheet Quick_Start & Getting_Started
A2: Double-click on the icons below to open the Quick Start Guide and Getting Started documents.
